Workbook

Sheet List1
A3: Obec , IČ: Náklo, 00299251
A5: Rozpočtová změna č. 2 - duben 2021
A7: V souladu s ustanovením § 16 zákona č. 250/2000 Sb., o rozpočtových pravidlech územních rozpočtů dojde k rozpočtovému
A8: opatření v případě změn rozpočtových prostředků na závazných ukazatelích.
A10: Rozpočtová změna č. 2/2021 (předloženo Radě obce dne 26.04.2021) a doplněno při jednání Rady obce
A12: PŘÍJMY
A13: PAR | B13: POL | C13: UZ | D13: PARAGRAF | E13: POLOŽKA | F13: Schválený ROZP | G13: Upravený ROZP | H13: změna ROZP | I13: ROZP po ZMĚNĚ | J13: POZNÁMKA
A14: 0 | B14: 1211 | E14: Daň z přidané hodnoty Celkem | F14: 10000000 | G14: 9195606.69 | H14: -283380 | I14: =G14+H14 -> 8912226.69
A17: 0 | B17: 1122 | E17: Daň z příjmu právnických osob za obce | F17: 500000 | G17: 800000 | H17: 283380 | I17: =H17+G17 -> 1083380 | J17: DPPO Obec
E18: 0 Bez ODPA Celkem | F18: 39449455 | G18: 39449455 | H18: =SUM(H14:H17) -> 0 | I18: =G18+H18 -> 39449455
D21: Celkem ZMĚNY v PŘÍJMECH | F21: 41986755 | G21: =F21 -> 41986755 | H21: =H18 -> 0 | I21: =F21+H21 -> 41986755
D23: Celkem PŘÍJMY | G23: =F21 -> 41986755 | H23: =H21 -> 0 | I23: =F21 -> 41986755
A25: VÝDAJE:
A26: PAR | B26: POL | C26: UZ | D26: PARAGRAF | E26: POLOŽKA | F26: Schválený ROZP | G26: ROZPOČTOVÁNO | H26: změna ROZP | I26: ROZP po ZMĚNĚ | J26: POZNÁMKA
A30: 2219 | B30: 5171 | E30: Opravy a udržování | F30: 13000000 | G30: 12438773.6 | H30: -283380 | I30: =G30+H30 -> 12155393.6
A32: 2219 | D32: Ostatní záležitosti pozemních komunikací | F32: =F30+F31 -> 13000000 | G32: 12438773.6 | H32: =H30+H31 -> -283380 | I32: 12155393.6
A35: 6399 | B35: 5365 | E35: Platby daní a poplatků krajům, obcím a st. Fondům | F35: 500000 | G35: 800000 | H35: 283380 | I35: =H35+F35 -> 783380 | J35: DPPO Obec
A36: 6399 | D36: Ostatní finanční operace | F36: 800000 | G36: 800000 | H36: =H35 -> 283380 | I36: =F36+H36 -> 1083380
D38: Celkem ZMĚNY ve VÝDAJÍCH | F38: 52372601.7 | G38: =F38 -> 52372601.7 | H38: =H36+H32 -> 0 | I38: =F38+H38 -> 52372601.7
D40: Celkem VÝDAJE | G40: =F38 -> 52372601.7 | H40: =H38 -> 0 | I40: =I38 -> 52372601.7
A44: FINANCOVÁNÍ
A45: PAR | B45: POL | C45: UZ | D45: PARAGRAF | E45: POLOŽKA | G45: Upravený ROZP | H45: změna ROZP | I45: ROZP po ZMĚNĚ | J45: POZNÁMKA
D46: Celkem ZMĚNY ve FINANCOVÁNÍ: | H46: 0
D49: REKAPITULACE:
D51: Celkem PŘÍJMY | G51: =F21 -> 41986755 | H51: =H21 -> 0 | I51: =H51+G51 -> 41986755
D52: Celkem FINANCOVÁNÍ: | G52: 13307846.7 | H52: 0 | I52: =H52+G52 -> 13307846.7
D53: Celkem PŘÍJMY+FINANCOVÁNÍ | G53: =+G52+G51 -> 55294601.7 | H53: =+H52+H51 -> 0 | I53: =H53+G53 -> 55294601.7
D55: Celkem VÝDAJE | G55: =F38 -> 52372601.7 | H55: =H38 -> 0 | I55: =G55+H55 -> 52372601.7
D56: Celkem FINANCOVÁNÍ: | G56: 2922000 | H56: 0 | I56: =H56+G56 -> 2922000
D57: Celkem VÝDAJE+FINANCOVÁNÍ | G57: =+G56+G55 -> 55294601.7 | H57: =+H56+H55 -> 0 | I57: =+I56+I55 -> 55294601.7
A59: Důvodová zpráva k rozpočtové změně č. 2/2021
A61: Přesun prostředků v rámci nezajištěného výdaje je Čerpán z rezervy obce.
A63: Správce rozpočtu :
A65: Starosta obce :
A67: Rada obce schvaluje dne 26. 04. 2021 rozpočtová změna č. 2/2021 v předloženém rozsahu

Sheet List2
A1: TEXTY PRO FORMULÁŘ ÚPRAVA ROZPOČTU - na začátek kopírují se řádky 3-13
A2: poznámka: Texty, které budou přenášeny z tohoto formuláře, musí být zapsány pouze ve sloupci A
A5: Obec , IČ: Náklo, 00299251
A7: Rozpočtové změny roku 2019 -duben
A9: V souladu s ustanovením § 16 zákona č. 250/2000 Sb., o rozpočtových pravidlech územních rozpočtů dojde k rozpočtovému
A10: opatření v případě změn rozpočtových prostředků na závazných ukazatelích.
A12: Rozpočtové opatření č. 1/2019 (předloženo na ZQ 6. 6. 2018) a doplněno při jednání na ZO
A14: TEXTY PRO FORMULÁŘ ÚPRAVA ROZPOČTU - na začátek kopírují se řádky 16-32
A16: Důvodová zpráva k rozpočtovému opatření č. 1/2019
A18: Přesun prostředků v rámci nezajištěného výdaje je Čerpán z rezervy obce.
A20: Správce rozpočtu :
A22: Starosta obce :
A24: ZO schvaluje dne 6. 6. 2018 rozpočtové opatření č. 3/2018 v předloženém rozsahu Usnesením č. 1038/1860

Sheet List3
